[Event "1st Serbian League 2022"]
[Site "Vrnjacka Banja"]
[Date "2022.09.21"]
[Round "2.6"]
[White "Lukovic, Vladimir"]
[Black "Todorovic, Goran N"]
[Result "1-0"]
[ECO "C66"]
[WhiteElo "2419"]
[BlackElo "2305"]
[Annotator "TA"]
[PlyCount "87"]
[EventDate "2022.09.20"]
[EventType "team-tourn"]
[EventCountry "SRB"]
[SourceTitle "playchess.com"]
[Source "ChessBase"]
[SourceQuality "1"]
[TimeControl "40/5400+30:1800+30"]

{[%evp 14,87,48,31,34,24,30,27,24,35,31,31,41,38,31,43,41,41,47,39,39,29,45,24,38,28,38,38,34,30,51,43,43,49,35,6,50,49,88,56,175,173,171,167,231,218,355,449,560,532,788,695,690,676,944,928,1395,960,951,964,951,951,820,758,711,722,688,672,706,707,694,703,813,804,752,727]} 1. e4 {[%emt 0:00:30]} e5 {[%emt 0:00:15]} 2. Nf3 {[%emt 0:00:17]} Nc6 {[%emt 0:00:10]} 3. Bb5 {[%emt 0:00:33]} Nf6 {[%emt 0:00:16]} 4. d3 {[%emt 0:01:04]} d6 {[%emt 0:00:23]} 5. O-O {[%emt 0:00:27]} Bd7 {[%emt 0:00:43]} 6. Re1 {[%emt 0:00:40]} Be7 {[%emt 0:00:57]} 7. c3 {[%emt 0:01:24]} O-O {[%emt 0:00:13]} 8. Nbd2 {[%emt 0:01:24][%cal Bb1d2,Bd2f1,Bf1g3][%mdl 32]} h6 {[%emt 0:00:43] C66: Ruy Lopez: Steinitz Defence.} 9. Nf1 {[%emt 0:00:55]} Re8 {[%emt 0:00:14]} 10. Ng3 {[%emt 0:01:27]} Bf8 {[%emt 0:00:18] White has an edge.} 11. h3 {[%emt 0:07:02]} a6 {[%emt 0:05:28]} 12. Ba4 {[%emt 0:00:29]} Ne7 {[%emt 0:04:39]} 13. Bc2 {[%emt 0:02:03]} Ng6 {[%emt 0:02:34]} 14. d4 {[%emt 0:00:29]} c6 {[%emt 0:00:11] [#]} 15. Be3 $146 {[%emt 0:05:24]} ({Predecessor:} 15. a4 b5 16. Be3 Qc7 17. Qd2 Be6 18. b4 Bc4 19. Bd3 Bxd3 20. Qxd3 d5 21. dxe5 Nxe5 22. Nxe5 dxe4 23. Nxe4 Nxe4 {½-½ (38) Bontems,C (2130)-Andersen,J (2201) ICCF email 2017}) 15... Qc7 {[%emt 0:01:02]} 16. Qd2 {[%emt 0:04:18]} Rad8 {[%emt 0:02:11]} 17. Rad1 {[%emt 0:01:04]} Bc8 {[%emt 0:02:34]} 18. Qc1 {[%emt 0:03:58]} b5 {[%emt 0:08:26]} 19. a4 {[%emt 0:07:20]} c5 {[%emt 0:14:13]} 20. d5 {[%emt 0:28:49]} c4 {[%emt 0:08:39]} 21. Qd2 {[%emt 0:00:19]} Nd7 {[%emt 0:02:20]} 22. Nf5 {[%emt 0:01:40]} Nc5 {[%emt 0:00:16]} 23. axb5 {[%emt 0:00:33]} axb5 {[%emt 0:00:09]} 24. g4 {[%emt 0:00:45][%cal Bg2g4,Bg4g5,Bg5h6][%mdl 32]} Ne7 {[%emt 0:11:51]} 25. Kh2 {[%emt 0:01:43]} Kh7 {[%emt 0:00:48]} 26. Rg1 {[%emt 0:02:53] White has more active pieces. The black rooks are badly placed. White stays focused until the end.} Ng8 {[%emt 0:04:28] [#]} (26... Nxf5 $14 27. exf5 (27. gxf5 Bb7 $11) 27... f6) 27. g5 $1 $18 {[%emt 0:03:12]} g6 {[%emt 0:09:20]} 28. Nxh6 {[%emt 0:07:14]} ({Not} 28. Bxc5 dxc5 29. N5h4 (29. d6 $2 Qd7 $19) 29... h5 $11) 28... Bxh6 {[%emt 0:00:36]} (28... Nxh6 $142 29. gxh6 Qa7) 29. gxh6 {[%emt 0:00:06] Strongly threatening Ng5+.} Nf6 {[%emt 0:03:42]} (29... Kh8 {was worth a try.} 30. Ng5 f6) 30. Ng5+ {[%emt 0:00:36]} Kg8 {[%emt 0:00:29] White is clearly winning.} 31. f4 {[%emt 0:01:32] Threatens to win with Rdf1.} exf4 {[%emt 0:04:27]} 32. Bd4 {[%emt 0:05:23]} Re5 {[%emt 0:04:55]} 33. Qxf4 {[%emt 0:00:17]} Qe7 {[%emt 0:00:34]} 34. Bxc5 {[%emt 0:06:43]} Nh5 {[%emt 0:04:09] [#]} 35. Qxf7+ $1 {[%emt 0:00:27]} Qxf7 {[%emt 0:00:32]} 36. Nxf7 {[%emt 0:00:05]} Kxf7 {[%emt 0:00:48]} 37. Rdf1+ {[%emt 0:00:07]} Nf6 {[%emt 0:01:16]} 38. Bd4 {[%emt 0:00:14]} Rh8 {[%emt 0:00:35]} 39. Bxe5 {[%emt 0:01:07]} dxe5 {[%emt 0:00:10]} 40. Bd1 {[%emt 0:04:39]} Rxh6 {[%emt 0:00:12]} 41. Bg4 {[%emt 0:30:22]} Bxg4 {[%emt 0:30:31]} 42. Rxg4 {[%emt 0:00:08]} Kg7 {[%emt 0:00:06]} 43. Rg5 {[%emt 0:00:35]} Rh8 {[%emt 0:00:27]} 44. Rfg1 {[%emt 0:00:36] Weighted Error Value: White=0.07 (flawless) /Black=0.30} 1-0

[Event "1st Serbian League 2022"]
[Site "Vrnjacka Banja"]
[Date "2022.09.21"]
[Round "2.7"]
[White "Predojevic, Borki"]
[Black "Risteski, Emil"]
[Result "1/2-1/2"]
[ECO "E17"]
[WhiteElo "2584"]
[BlackElo "2364"]
[Annotator "TA"]
[PlyCount "49"]
[EventDate "2022.09.20"]
[EventType "team-tourn"]
[EventCountry "SRB"]
[SourceTitle "playchess.com"]
[Source "ChessBase"]
[SourceQuality "1"]
[TimeControl "40/5400+30:1800+30"]

{[%evp 13,49,14,28,24,33,24,20,20,23,23,60,27,37,-19,-30,-26,-10,-31,15,11,20,21,15,12,16,20,20,25,30,16,34,39,50,24,38,25,24,0]} 1. d4 {[%emt 0:00:04]} Nf6 {[%emt 0:00:17]} 2. c4 {[%emt 0:00:09]} e6 {[%emt 0:00:05]} 3. Nf3 {[%emt 0:00:09]} b6 {[%emt 0:00:05]} 4. g3 {[%emt 0:00:06]} Bb7 {[%emt 0:00:04]} 5. Bg2 {[%emt 0:00:06]} Be7 {[%emt 0:00:05]} 6. Nc3 {[%emt 0:00:11]} Ne4 {[%emt 0:08:18]} 7. Bd2 {[%emt 0:00:34]} Nxd2 {[%emt 0:11:56]} 8. Qxd2 {[%emt 0:01:49] E17: Queen's Indian: 4 g3 Bb7 5 Bg2 Be7.} d6 {[%emt 0:00:05] [#]} 9. Rd1 $146 {[%emt 0:13:50]} ({Predecessor:} 9. O-O O-O 10. e4 Nd7 11. Rfe1 c6 12. Rad1 Re8 13. h4 a6 14. e5 d5 15. cxd5 cxd5 16. Ne2 a5 17. Nc3 Ba6 {1-0 (34) Dubov,D (2699)-Sanal,V (2581) Chess.com INT 2020}) 9... Nd7 {[%emt 0:02:24]} 10. Qc2 {[%emt 0:05:13] The position is equal.} c5 {[%emt 0:09:40]} 11. O-O {[%emt 0:10:46]} cxd4 {[%emt 0:11:29]} 12. Rxd4 {[%emt 0:11:57]} (12. Nxd4 $5 {[%cal Rg2b7]} Bxg2 13. Kxg2 $14) 12... a6 {[%emt 0:03:40]} 13. Nd2 {[%emt 0:17:27]} (13. Ne4 $14) 13... Bxg2 $11 {[%emt 0:01:31]} 14. Kxg2 {[%emt 0:00:03]} Qc7 {[%emt 0:01:24]} 15. Nde4 {[%emt 0:01:30][%cal Oe4d6]} Nc5 {[%emt 0:04:27]} ({Much less strong is} 15... f5 {[#]} 16. Nxd6+ $1 Bxd6 17. Rfd1 $16) (15... O-O $15 {feels stronger.}) 16. Nxc5 {[%emt 0:07:35]} bxc5 {[%emt 0:01:36]} 17. Rd3 {[%emt 0:00:20]} O-O {[%emt 0:00:29]} 18. Rfd1 {[%emt 0:00:21]} Rfd8 {[%emt 0:01:33][%cal Bf8d8,Bd8d7,Bd7b7,Bb7b8][%mdl 32]} 19. Qd2 {[%emt 0:04:17]} Qc6+ {[%emt 0:01:16]} 20. Kg1 {[%emt 0:00:17]} Rd7 {[%emt 0:01:42]} 21. e4 {[%emt 0:12:06]} Rb7 {[%emt 0:05:24]} 22. b3 {[%emt 0:01:11]} Rbb8 {[%emt 0:02:21]} 23. Qe3 {[%emt 0:04:58]} Re8 {[%emt 0:11:54]} 24. Na4 {[%emt 0:00:53]} Rac8 {[%emt 0:02:27]} 25. Nc3 {[%emt 0:02:05] Weighted Error Value: White=0.13 (very precise) /Black=0.08 (flawless)} 1/2-1/2

[Event "1st Serbian League 2022"]
[Site "Vrnjacka Banja"]
[Date "2022.09.21"]
[Round "2.8"]
[White "Djokic, Mihailo"]
[Black "Bogosavljevic, Boban"]
[Result "1-0"]
[ECO "B77"]
[WhiteElo "2197"]
[BlackElo "2533"]
[Annotator "TA"]
[PlyCount "103"]
[EventDate "2022.09.20"]
[EventType "team-tourn"]
[EventCountry "SRB"]
[SourceTitle "playchess.com"]
[Source "ChessBase"]
[SourceQuality "1"]
[TimeControl "40/5400+30:1800+30"]

{[%evp 21,103,10,26,-47,-45,-47,-47,-47,-47,-47,-47,-75,-60,-71,-38,-35,-29,-35,-18,-17,-24,-27,-7,-17,-17,-16,-18,-30,-21,-31,-8,-5,-5,-6,-3,-22,-16,-17,-8,-8,0,-41,-18,-18,-18,-41,0,0,0,0,43,47,31,17,75,72,120,110,179,176,173,170,435,428,803,725,1033,852,1335,1374,1290,1029,1330,1089,1796,1518,4935,4357,29966,29969,29963,29969,5591,5535]} 1. e4 {[%emt 0:00:02]} c5 {[%emt 0:00:39]} 2. Nf3 {[%emt 0:00:09]} Nc6 {[%emt 0:00:12]} 3. d4 {[%emt 0:00:13]} cxd4 {[%emt 0:00:08]} 4. Nxd4 {[%emt 0:00:08]} g6 {[%emt 0:01:17]} 5. Nc3 {[%emt 0:00:54]} Bg7 {[%emt 0:00:17]} 6. Be3 {[%emt 0:00:03]} Nf6 {[%emt 0:00:23]} 7. Bc4 {[%emt 0:01:05]} O-O {[%emt 0:00:38]} 8. Bb3 {[%emt 0:00:02]} d6 {[%emt 0:01:53]} 9. f3 {[%emt 0:01:19]} Qa5 {[%emt 0:00:30]} 10. Qd2 {[%emt 0:00:49]} Nxd4 {[%emt 0:00:10] is cutting edge theory.} 11. Bxd4 {[%emt 0:00:08]} Be6 {[%emt 0:00:11]} 12. Bxf6 {[%emt 0:05:53] B77: Sicilian Dragon: Yugoslav Attack, 9 Bc4 sidelines.} (12. a3 $11) 12... Bxf6 $15 {[%emt 0:07:32]} 13. Nd5 {[%emt 0:00:12]} Qxd2+ $1 {[%emt 0:03:59]} 14. Kxd2 {[%emt 0:00:17] Black is slightly better.} Bxd5 {[%emt 0:03:21]} 15. Bxd5 {[%emt 0:00:08]} e6 {[%emt 0:03:52] [#]} 16. Bc4 $146 {[%emt 0:05:02]} ({Predecessor:} 16. Bxb7 Rab8 17. Ba6 Rxb2 18. Rhb1 Rfb8 19. Rxb2 Rxb2 20. Bd3 Rb6 21. Rf1 Rb4 22. f4 Ra4 23. Rb1 Rxa2 24. Rb8+ Kg7 25. Rb7 Kf8 26. Rb8+ {½-½ (26) Bolacky,J (2267)-Vesselovsky,S (2400) Orlova 2005}) 16... Rfc8 {[%emt 0:04:58]} 17. Kd3 {[%emt 0:00:16]} b5 {[%emt 0:13:01]} 18. Bxb5 {[%emt 0:00:53]} Bxb2 {[%emt 0:02:02]} 19. Rab1 {[%emt 0:00:21]} Be5 {[%emt 0:00:27]} 20. c4 {[%emt 0:07:45]} Rc5 {[%emt 0:04:33]} 21. g3 {[%emt 0:04:32]} Rac8 {[%emt 0:12:14][%cal Oa7a6]} 22. Rhc1 {[%emt 0:05:28]} g5 {[%emt 0:12:12]} 23. Rc2 {[%emt 0:08:21]} Kg7 {[%emt 0:02:13]} 24. Rb3 {[%emt 0:02:30]} h5 {[%emt 0:03:32][%cal Bh7h5,Bh5h4][%mdl 32]} 25. Ke3 {[%emt 0:05:46]} h4 {[%emt 0:06:17]} (25... d5 $5 {[%cal Rd5c4]}) 26. f4 {[%emt 0:03:17]} Bf6 {[%emt 0:00:12]} 27. Rd2 {[%emt 0:02:25]} Be7 {[%emt 0:06:47]} 28. Kf3 {[%emt 0:05:37]} hxg3 {[%emt 0:00:35]} 29. hxg3 {[%emt 0:00:07]} Rh8 {[%emt 0:00:15]} 30. Ra3 {[%emt 0:01:31]} Rc7 {[%emt 0:02:01]} 31. fxg5 {[%emt 0:02:05]} Rh5 {[%emt 0:06:00]} 32. Ra6 {[%emt 0:01:30]} Rxg5 {[%emt 0:00:16]} 33. Rd3 {[%emt 0:01:09]} Rgc5 {[%emt 0:03:46]} 34. Rda3 {[%emt 0:01:46]} d5 {[%emt 0:00:34]} 35. Rxa7 {[%emt 0:02:13]} d4 {[%emt 0:00:31][%cal Oc5h5]} 36. Rxc7 {[%emt 0:01:41]} Rxc7 $14 {[%emt 0:00:04][%mdl 4096] Endgame KRB-KRB} 37. Ra8 {[%emt 0:01:02]} Bg5 {[%emt 0:00:56]} (37... Kf6 $11) 38. Ke2 $16 {[%emt 0:01:47]} Bf6 {[%emt 0:00:30] [#]} ({Black should try} 38... Be7) 39. a4 $1 {[%emt 0:01:28][%cal Ba2a4,Ba4a5,Ba5a6][%mdl 32]} Rc5 {[%emt 0:00:06]} (39... Be7 $16 {was called for.}) 40. a5 $18 {[%emt 0:02:39] Black must now prevent a6.} Rg5 {[%emt 0:00:15]} 41. a6 {[%emt 0:31:10]} Rxg3 $2 {[%emt 0:06:20] [#]} (41... d3+ {might work better.} 42. Kxd3 Rxg3+ 43. Kd2 Bd4) 42. c5 $1 {[%emt 0:00:00][%cal Bc4c5,Bc5c6][%mdl 32]} Rb3 {[%emt 0:06:41] [#]} (42... Re3+ $142 43. Kd1 Ra3) 43. c6 $1 {[%emt 0:00:00] And now c7 would win.} Be5 {[%emt 0:09:29] [#]} (43... Rb2+ 44. Kd3) 44. Rd8 $1 {[%emt 0:00:00] Strongly threatening a7.} Re3+ {[%emt 0:04:22]} (44... Rb2+ 45. Kd3) 45. Kd1 {[%emt 0:00:00]} Ra3 {[%emt 0:00:17]} 46. Rd7 {[%emt 0:00:00]} Ra5 {[%emt 0:02:40]} 47. Rb7 {[%emt 0:00:00]} Kf6 {[%emt 0:02:40]} 48. a7 {[%emt 0:00:00]} Bd6 {[%emt 0:02:09]} 49. c7 {[%emt 0:00:00]} Bxc7 {[%emt 0:00:04]} 50. Rxc7 {[%emt 0:00:00]} Ke5 {[%emt 0:00:06]} 51. Rxf7 {[%emt 0:00:00]} Kd6 {[%emt 0:01:20]} 52. Bc4 {[%emt 0:00:00] Weighted Error Value: White=0.10 (very precise) /Black=0.45} 1-0

[Event "1st Serbian League 2022"]
[Site "Vrnjacka Banja"]
[Date "2022.09.21"]
[Round "2.9"]
[White "Vuckovic, Bojan"]
[Black "Jocev, Milan"]
[Result "1/2-1/2"]
[ECO "C88"]
[WhiteElo "2559"]
[BlackElo "2283"]
[Annotator "TA"]
[PlyCount "120"]
[EventDate "2022.09.20"]
[EventType "team-tourn"]
[EventCountry "SRB"]
[SourceTitle "playchess.com"]
[Source "ChessBase"]
[SourceQuality "1"]
[TimeControl "40/5400+30:1800+30"]

{[%evp 18,120,22,1,6,9,26,0,3,0,37,33,41,34,47,38,46,32,36,16,32,32,32,26,34,30,56,54,58,51,50,40,53,32,32,32,32,34,49,48,37,33,33,37,40,24,72,26,58,58,58,64,78,77,87,66,63,0,0,0,0,0,0,0,194,0,0,0,0,0,0,0,0,0,0,0,0,0,0,0,0,0,0,0,0,0,0,0,0,0,0,0,0,0,0,0,0,0,0,0,0,0,0,0,0]} 1. e4 {[%emt 0:00:11]} e5 {[%emt 0:00:09]} 2. Nf3 {[%emt 0:00:17]} Nc6 {[%emt 0:00:11]} 3. Bb5 {[%emt 0:00:25]} a6 {[%emt 0:00:11]} 4. Ba4 {[%emt 0:00:07]} Nf6 {[%emt 0:00:23]} 5. O-O {[%emt 0:00:24]} b5 {[%emt 0:00:13]} 6. Bb3 {[%emt 0:00:09]} Be7 {[%emt 0:00:21]} 7. Re1 {[%emt 0:01:09]} O-O {[%emt 0:00:21]} 8. a4 {[%emt 0:03:23]} Rb8 {[%emt 0:01:55]} 9. d3 {[%emt 0:03:10]} d6 {[%emt 0:03:04]} 10. c3 {[%emt 0:03:37]} Na5 {[%emt 0:03:22] C88: Closed Ruy Lopez: Anti-Marshall Systems.} 11. Bc2 {[%emt 0:03:40]} c5 {[%emt 0:00:18]} 12. Nbd2 {[%emt 0:15:25][%cal Bb1d2,Bd2f1,Bf1e3][%mdl 32]} Re8 {[%emt 0:02:06]} 13. Nf1 {[%emt 0:01:53]} Bf8 {[%emt 0:05:29]} 14. axb5 {[%emt 0:04:56]} axb5 {[%emt 0:00:23]} 15. Bg5 {[%emt 0:00:15] aiming for Bxf6.} Nc6 {[%emt 0:08:13]} 16. Ne3 {[%emt 0:01:34]} h6 {[%emt 0:09:51]} 17. Bh4 {[%emt 0:03:59]} Be7 {[%emt 0:10:40]} 18. Bb3 {[%emt 0:05:27]} Be6 {[%emt 0:05:10]} 19. Bxf6 {[%emt 0:10:56]} Bxf6 {[%emt 0:00:27]} 20. Bd5 {[%emt 0:00:46]} Qc8 {[%emt 0:12:13]} 21. Qb3 {[%emt 0:06:36]} Ne7 {[%emt 0:03:17]} 22. Bxe6 {[%emt 0:04:48] [#]} fxe6 $146 {[%emt 0:00:54]} ({Predecessor:} 22... Qxe6 23. Qxe6 fxe6 24. Ra6 Nc8 25. Rea1 Re7 26. Kf1 Kf7 27. Ke2 Rc7 28. g3 Ke7 {½-½ (34) Psakhis,L (2575)-Milos,G (2540) Novi Sad 1990}) 23. Ra5 {[%emt 0:01:12]} Qd7 {[%emt 0:08:26]} 24. Rea1 {[%emt 0:02:35]} Rb7 {[%emt 0:03:27] Inhibits Ra7.} 25. Ra8 {[%emt 0:04:08] [#] Threatens to win with Rxe8+.} Nc6 {[%emt 0:09:57]} 26. Rxe8+ {[%emt 0:05:42]} Qxe8 {[%emt 0:00:30]} 27. Ra6 {[%emt 0:00:34]} Kf7 {[%emt 0:03:35]} 28. h4 {[%emt 0:01:24]} Qd7 {[%emt 0:04:35]} 29. g3 {[%emt 0:02:23][%cal Bg2g3,Bg3g4][%mdl 32]} Nb8 {[%emt 0:01:29]} 30. Ra8 {[%emt 0:01:10]} Nc6 {[%emt 0:01:03]} 31. g4 {[%emt 0:08:33]} g6 {[%emt 0:02:43]} (31... Ra7 $11 32. Rxa7 Nxa7) 32. Kg2 {[%emt 0:02:33] White is much more active.} (32. g5 $16 hxg5 33. hxg5) 32... Ra7 {[%emt 0:00:44]} 33. Rxa7 {[%emt 0:00:38]} Nxa7 {[%emt 0:00:06]} 34. g5 {[%emt 0:02:05]} hxg5 {[%emt 0:01:05]} 35. hxg5 {[%emt 0:00:05]} Bg7 {[%emt 0:00:09]} 36. Qa2 {[%emt 0:00:51]} Qb7 {[%emt 0:00:08]} 37. c4 {[%emt 0:01:21]} ({White should try} 37. Kg3 $14) 37... b4 $11 {[%emt 0:00:48]} 38. Qa4 {[%emt 0:00:31]} Nc6 {[%emt 0:01:00]} 39. Ng4 {[%emt 0:00:31]} Nd4 {[%emt 0:00:27]} 40. Nxd4 {[%emt 0:00:31]} cxd4 {[%emt 0:00:20][%mdl 4096] Endgame KQB-KQN} (40... exd4 $11 {and Black is okay.} 41. f3 Qe7) 41. Qb5 $2 {[%emt 0:08:32]} (41. Kg3 $18) 41... Qe7 $1 {[%emt 0:00:56] The position is equal.} 42. Qxb4 {[%emt 0:00:37] [#] Hoping for Qd2.} Qxg5 {[%emt 0:00:10]} 43. f3 {[%emt 0:08:36]} Qc1 {[%emt 0:01:29]} 44. Qb7+ {[%emt 0:02:13]} Kg8 {[%emt 0:00:58]} 45. Qc8+ {[%emt 0:00:22]} Kh7 {[%emt 0:00:38]} 46. Qxe6 {[%emt 0:00:43]} Qxb2+ {[%emt 0:01:07]} 47. Nf2 {[%emt 0:02:05]} Qd2 {[%emt 0:02:06]} 48. Qe7 {[%emt 0:02:31]} Qf4 {[%emt 0:04:48]} 49. Nh3 {[%emt 0:01:17]} Qd2+ {[%emt 0:00:14]} 50. Kg3 {[%emt 0:00:14]} Qe1+ {[%emt 0:04:39]} (50... Qxd3 {is a self mate.} 51. Ng5+ Kh6 52. Ne6) 51. Kg4 {[%emt 0:00:39]} Qf1 {[%emt 0:03:34]} 52. Ng5+ {[%emt 0:01:12]} Kh6 {[%emt 0:00:10]} 53. Nf7+ {[%emt 0:00:41]} Kh7 {[%emt 0:00:06]} 54. Qh4+ {[%emt 0:02:24]} Kg8 {[%emt 0:00:05]} 55. Ng5 {[%emt 0:00:45] Qh7+ would kill now.} Bh6 {[%emt 0:03:18]} 56. Qxh6 {[%emt 0:03:52]} Qg2+ {[%emt 0:00:13]} 57. Kh4 {[%emt 0:00:05]} Qf2+ $1 {[%emt 0:00:08]} 58. Kh3 {[%emt 0:00:28]} Qf1+ {[%emt 0:00:09]} 59. Kg4 {[%emt 0:00:11]} Qg2+ {[%emt 0:00:07]} 60. Kh4 {[%emt 0:00:04]} Qf2+ $1 {[%emt 0:00:09] Weighted Error Value: White=0.10 (very precise) /Black=0.12 (very precise)} 1/2-1/2

[Event "1st Serbian League 2022"]
[Site "Vrnjacka Banja"]
[Date "2022.09.21"]
[Round "2.10"]
[White "Stankovic, Boris"]
[Black "Roganovic, Milos"]
[Result "0-1"]
[ECO "B76"]
[WhiteElo "2208"]
[BlackElo "2487"]
[Annotator "TA"]
[PlyCount "90"]
[EventDate "2022.09.20"]
[EventType "team-tourn"]
[EventCountry "SRB"]
[SourceTitle "playchess.com"]
[Source "ChessBase"]
[SourceQuality "1"]
[TimeControl "40/5400+30:1800+30"]

{[%evp 19,90,26,73,60,64,-8,-12,-6,-7,-29,-25,-31,-35,-26,-32,-42,-28,-57,-80,-82,-77,-146,-149,-139,-138,-147,-137,-145,-91,-261,-184,-340,-189,-187,-191,-422,-404,-396,-404,-476,-466,-488,-475,-460,-445,-382,-345,-324,-306,-337,-319,-338,-311,-350,-306,-297,-291,-470,-466,-447,-447,-447,-446,-478,-479,-477,-447,-446,-432,-508,-482,-472,-452]} 1. e4 {[%emt 0:00:02]} c5 {[%emt 0:00:08]} 2. Nf3 {[%emt 0:00:15]} d6 {[%emt 0:00:21]} 3. d4 {[%emt 0:01:32]} cxd4 {[%emt 0:00:13]} 4. Nxd4 {[%emt 0:00:07]} Nf6 {[%emt 0:00:06]} 5. Nc3 {[%emt 0:00:29]} g6 {[%emt 0:00:12]} 6. Be3 {[%emt 0:02:55]} Bg7 {[%emt 0:00:56]} 7. f3 {[%emt 0:00:26]} Nc6 {[%emt 0:00:21]} 8. Qd2 {[%emt 0:01:50]} O-O {[%emt 0:00:26]} 9. O-O-O {[%emt 0:00:31]} d5 {[%emt 0:00:20]} 10. Kb1 {[%emt 0:01:52]} Rb8 {[%emt 0:01:23]} (10... Nxd4 $11 11. Bxd4 dxe4) 11. Ndb5 $16 {[%emt 0:34:47][%cal Re4d5] B76: Sicilian Dragon: Yugoslav Attack, 9 g4 and 9 0-0-0.} a6 {[%emt 0:03:26]} 12. exd5 {[%emt 0:05:41]} (12. Na7 $14) 12... axb5 $11 {[%emt 0:02:14]} 13. dxc6 {[%emt 0:00:13] The position is equal.} Qxd2 {[%emt 0:00:12] [#]} 14. Rxd2 $146 {[%emt 0:01:49]} (14. Bxd2 $5 {[%cal Rc6c7]} bxc6 15. Bd3 $11) ({Predecessor:} 14. Bxd2 bxc6 15. Re1 Be6 16. Bd3 Rfd8 17. Re2 Nd7 18. Ne4 Ra8 19. a3 Ne5 {½-½ (19) Kulashko,A (2390)-Rice,M (2190) IECG email 1997}) 14... bxc6 {[%emt 0:00:10]} 15. a3 {[%emt 0:11:37]} Be6 {[%emt 0:08:20]} 16. Bc5 {[%emt 0:04:04]} Rfe8 {[%emt 0:00:21]} 17. Ne4 {[%emt 0:19:02]} Nd5 {[%emt 0:01:47]} 18. g3 {[%emt 0:02:05]} b4 {[%emt 0:01:53]} 19. axb4 {[%emt 0:02:18]} Nxb4 {[%emt 0:00:26]} 20. Bd4 {[%emt 0:02:36]} (20. c3 $142 Nd5 21. Kc2) 20... Bh6 $1 $17 {[%emt 0:02:45] ...f5 is the strong threat.} 21. f4 {[%emt 0:01:21] [#]} Ba2+ $1 {[%emt 0:03:49]} 22. Kc1 {[%emt 0:00:25]} Bd5 $36 {[%emt 0:00:42][%mdl 2048] White is under strong pressure.} 23. Bg2 {[%emt 0:01:47] [#]} Ra8 {[%emt 0:01:35]} ({Better is} 23... f5 $1 {[%cal Rf5e4]} 24. Nc3 Bxg2 25. Rxg2 e5) 24. b3 $2 {[%emt 0:00:46] This move loses the game for White.} (24. Kb1 $17) 24... f5 {[%emt 0:01:42]} 25. Nc5 {[%emt 0:01:18]} (25. Ng5 Bxg2 26. Rxg2) 25... Bxg2 {[%emt 0:07:02]} (25... e5 $142 26. Bxd5+ cxd5) 26. Rxg2 $19 {[%emt 0:00:01]} e5 $1 {[%emt 0:00:08]} 27. Bc3 {[%emt 0:00:44]} (27. Bb2) 27... Nd5 {[%emt 0:01:55]} 28. Kb2 {[%emt 0:00:29]} Bf8 {[%emt 0:02:07]} 29. Na4 {[%emt 0:00:40] [#]} Rxa4 $1 {[%emt 0:02:07][%mdl 512]} 30. bxa4 {[%emt 0:00:22]} Rb8+ {[%emt 0:00:08][%mdl 64] Deflection} 31. Kc1 {[%emt 0:00:59]} Nxc3 {[%emt 0:00:06]} 32. Kd2 {[%emt 0:00:42]} Nxa4 {[%emt 0:01:49]} ({Avoid the trap} 32... Ne4+ $2 33. Ke2 $19) 33. fxe5 {[%emt 0:00:20]} Rd8+ {[%emt 0:01:46]} 34. Ke3 {[%emt 0:00:09]} Rd5 {[%emt 0:01:52]} 35. Kf3 {[%emt 0:00:15]} Rxe5 {[%emt 0:00:30]} 36. Re2 {[%emt 0:00:37]} Rxe2 {[%emt 0:00:33]} 37. Kxe2 {[%emt 0:00:01]} Nc3+ {[%emt 0:00:19]} 38. Kd3 $2 {[%emt 0:00:31]} (38. Kf3) 38... Ne4 {[%emt 0:00:11] And now ...Nf2+ would win. Black is clearly winning.} 39. Ra1 {[%emt 0:00:50]} Kf7 {[%emt 0:00:16]} 40. Ra7+ {[%emt 0:00:56]} Be7 {[%emt 0:00:49]} 41. Rc7 {[%emt 0:03:43]} c5 {[%emt 0:00:34]} 42. Rc6 {[%emt 0:00:40]} h5 {[%emt 0:01:04]} 43. Ke3 {[%emt 0:01:15]} Nf6 {[%emt 0:01:50] White must now prevent ...Ng4+.} 44. h3 {[%emt 0:00:45] Prevents Ng4+.} Nd5+ {[%emt 0:01:14]} 45. Kf2 {[%emt 0:01:58]} Nb4 {[%emt 0:00:09][%csl LRc2,LRc6] Weighted Error Value: White=0.42/Black=0.16 (very precise)} 0-1